[Event "Titled Tuesday Blitz January 31 Early 2023"]
[White "Bethke, Richard"]
[Black "Schut, Han"]
[WhiteFideId "12959243"]
[BlackFideId "1005561"]
[WhiteElo "2382"]
[BlackElo "2101"]
[Result "1-0"]
[Round "02"]
[TimeControl "180+2"]
[Date "2023.01.31"]
[WhiteClock "0:00:03"]
[BlackClock "0:00:02"]

1. e4 {[%clk 0:03:00]}  c5 {[%clk 0:02:59]} 2. Nf3 {[%clk 0:03:00]}  d6 {[%clk 0:02:58]} 3. d4 {[%clk 0:03:01]}  cxd4 {[%clk 0:02:59]} 4. Nxd4 {[%clk 0:03:01]}  Nf6 {[%clk 0:03:00]} 5. Nc3 {[%clk 0:03:00]}  a6 {[%clk 0:03:00]} 6. Be3 {[%clk 0:03:00]}  e5 {[%clk 0:03:00]} 7. Nf3 {[%clk 0:02:59]}  Qc7 {[%clk 0:02:59]} 8. a4 {[%clk 0:02:57]}  Be7 {[%clk 0:02:58]} 9. a5 {[%clk 0:02:56]}  Be6 {[%clk 0:02:56]} 10. Nd5 {[%clk 0:02:56]}  Nxd5 {[%clk 0:02:37]} 11. exd5 {[%clk 0:02:57]}  Bg4 {[%clk 0:02:37]} 12. Be2 {[%clk 0:02:41]}  h6 {[%clk 0:02:29]} 13. O-O {[%clk 0:02:30]}  f5 {[%clk 0:02:28]} 14. Bb6 {[%clk 0:02:24]}  Qc8 {[%clk 0:02:19]} 15. c4 {[%clk 0:02:22]}  Nd7 {[%clk 0:02:12]} 16. Nd2 {[%clk 0:02:11]}  Bxe2 {[%clk 0:02:04]} 17. Qxe2 {[%clk 0:02:12]}  O-O {[%clk 0:01:59]} 18. b4 {[%clk 0:02:09]}  Bf6 {[%clk 0:01:55]} 19. Rac1 {[%clk 0:02:07]}  e4 {[%clk 0:01:43]} 20. c5 {[%clk 0:02:05]}  dxc5 {[%clk 0:01:41]} 21. bxc5 {[%clk 0:02:03]}  Ne5 {[%clk 0:01:41]} 22. Nc4 {[%clk 0:01:44]}  Nd3 {[%clk 0:01:38]} 23. Rcd1 {[%clk 0:01:42]}  Qd7 {[%clk 0:01:11]} 24. Nd6 {[%clk 0:01:35]}  Be5 {[%clk 0:01:04]} 25. Rxd3 {[%clk 0:01:27]}  Bxd6 {[%clk 0:01:04]} 26. Rdd1 {[%clk 0:01:19]}  Bc7 {[%clk 0:00:56]} 27. c6 {[%clk 0:01:13]}  Qd6 {[%clk 0:00:49]} 28. Bxc7 {[%clk 0:01:06]}  Qxc7 {[%clk 0:00:50]} 29. Qc4 {[%clk 0:01:05]}  bxc6 {[%clk 0:00:45]} 30. d6+ {[%clk 0:01:04]}  Qf7 {[%clk 0:00:44]} 31. Qxc6 {[%clk 0:01:04]}  Qe6 {[%clk 0:00:31]} 32. Qb6 {[%clk 0:00:42]}  f4 {[%clk 0:00:29]} 33. Rfe1 {[%clk 0:00:34]}  f3 {[%clk 0:00:24]} 34. gxf3 {[%clk 0:00:19]}  Qg6+ {[%clk 0:00:24]} 35. Kh1 {[%clk 0:00:17]}  Qh5 {[%clk 0:00:16]} 36. Qb3+ {[%clk 0:00:15]}  Kh8 {[%clk 0:00:15]} 37. d7 {[%clk 0:00:15]}  exf3 {[%clk 0:00:12]} 38. Rg1 {[%clk 0:00:09]}  Rad8 {[%clk 0:00:11]} 39. Qc3 {[%clk 0:00:08]}  Qf7 {[%clk 0:00:10]} 40. Qd4 {[%clk 0:00:08]}  Kh7 {[%clk 0:00:07]} 41. Rg3 {[%clk 0:00:08]}  g5 {[%clk 0:00:07]} 42. Qe4+ {[%clk 0:00:06]}  Qg6 {[%clk 0:00:08]} 43. Qe7+ {[%clk 0:00:05]}  Qf7 {[%clk 0:00:08]} 44. Qd6 {[%clk 0:00:04]}  Qf6 {[%clk 0:00:07]} 45. Qc5 {[%clk 0:00:02]}  Qf7 {[%clk 0:00:06]} 46. Rh3 {[%clk 0:00:03]}  Rxd7 {[%clk 0:00:03]} 47. Qc2+ {[%clk 0:00:03]}  Qg6 {[%clk 0:00:03]} 48. Rxd7+ {[%clk 0:00:03]}  Kg8 {[%clk 0:00:02]} 49. Qxg6+ {[%clk 0:00:03]} 1-0


[Site "https://www.chess.com"]

[Event "Titled Tuesday Blitz January 31 Early 2023"]
[White "Abdilkhair, Abilmansur"]
[Black "Cella, Glaucio Dalla Cortt"]
[WhiteFideId "13716417"]
[BlackFideId "2119455"]
[WhiteElo "2268"]
[BlackElo "1894"]
[Result "0-1"]
[Round "02"]
[TimeControl "180+2"]
[Date "2023.01.31"]
[WhiteClock "0:01:26"]
[BlackClock "0:01:47"]

1. d4 {[%clk 0:02:52]}  Nf6 {[%clk 0:02:31]} 2. c4 {[%clk 0:02:51]}  e5 {[%clk 0:02:31]} 3. dxe5 {[%clk 0:02:50]}  Ng4 {[%clk 0:02:31]} 4. Bf4 {[%clk 0:02:47]}  Nc6 {[%clk 0:02:25]} 5. Nf3 {[%clk 0:02:45]}  Bb4+ {[%clk 0:02:25]} 6. Nc3 {[%clk 0:02:41]}  Bxc3+ {[%clk 0:02:24]} 7. bxc3 {[%clk 0:02:40]}  Qe7 {[%clk 0:02:25]} 8. Qd5 {[%clk 0:02:36]}  f6 {[%clk 0:02:14]} 9. exf6 {[%clk 0:02:35]}  Nxf6 {[%clk 0:02:15]} 10. Qe4 {[%clk 0:02:36]}  Qxe4 {[%clk 0:02:11]} 11. Bd2 {[%clk 0:02:19]}  Qxc4 {[%clk 0:02:09]} 12. e3 {[%clk 0:02:16]}  Qf7 {[%clk 0:02:10]} 13. Be2 {[%clk 0:02:13]}  Ne4 {[%clk 0:02:10]} 14. O-O {[%clk 0:02:10]}  Nxd2 {[%clk 0:02:11]} 15. Nxd2 {[%clk 0:02:11]}  d6 {[%clk 0:02:11]} 16. Bb5 {[%clk 0:02:08]}  a6 {[%clk 0:02:11]} 17. Ba4 {[%clk 0:02:05]}  b5 {[%clk 0:02:09]} 18. Bb3 {[%clk 0:02:02]}  Be6 {[%clk 0:02:09]} 19. e4 {[%clk 0:01:56]}  Na5 {[%clk 0:02:09]} 20. f4 {[%clk 0:01:52]}  Bc4 {[%clk 0:02:03]} 21. Nxc4 {[%clk 0:01:47]}  Nxb3 {[%clk 0:02:01]} 22. Ne5 {[%clk 0:01:42]}  dxe5 {[%clk 0:02:00]} 23. axb3 {[%clk 0:01:34]}  Qxb3 {[%clk 0:01:57]} 24. Rad1 {[%clk 0:01:26]}  O-O {[%clk 0:01:47]} 0-1


[Site "https://www.chess.com"]

[Event "Titled Tuesday Blitz January 31 Early 2023"]
[White "Koridze, Lile"]
[Black "Martin Carmona, Gaston Manuel"]
[WhiteFideId "13612514"]
[BlackFideId "22284567"]
[WhiteElo "2191"]
[BlackElo "2333"]
[Result "0-1"]
[Round "02"]
[TimeControl "180+2"]
[Date "2023.01.31"]
[WhiteClock "0:01:41"]
[BlackClock "0:01:03"]

1. d4 {[%clk 0:03:00]}  Nf6 {[%clk 0:02:55]} 2. c4 {[%clk 0:03:01]}  g6 {[%clk 0:02:50]} 3. Nc3 {[%clk 0:03:01]}  Bg7 {[%clk 0:02:50]} 4. e4 {[%clk 0:03:01]}  d6 {[%clk 0:02:51]} 5. Nf3 {[%clk 0:03:01]}  O-O {[%clk 0:02:51]} 6. Be2 {[%clk 0:03:01]}  e5 {[%clk 0:02:52]} 7. O-O {[%clk 0:03:02]}  exd4 {[%clk 0:02:51]} 8. Nxd4 {[%clk 0:03:00]}  Re8 {[%clk 0:02:52]} 9. f3 {[%clk 0:03:00]}  c6 {[%clk 0:02:52]} 10. Bg5 {[%clk 0:02:57]}  Qb6 {[%clk 0:02:51]} 11. Be3 {[%clk 0:02:47]}  Qxb2 {[%clk 0:02:41]} 12. Qd3 {[%clk 0:02:47]}  Qa3 {[%clk 0:02:34]} 13. Rfb1 {[%clk 0:02:41]}  Qa5 {[%clk 0:02:28]} 14. Nc2 {[%clk 0:02:38]}  Qc7 {[%clk 0:02:25]} 15. Bf4 {[%clk 0:02:37]}  Bf8 {[%clk 0:02:20]} 16. Rd1 {[%clk 0:02:34]}  Be6 {[%clk 0:02:10]} 17. Bxd6 {[%clk 0:02:33]}  Bxd6 {[%clk 0:02:10]} 18. Qxd6 {[%clk 0:02:34]}  Qxd6 {[%clk 0:02:10]} 19. Rxd6 {[%clk 0:02:33]}  Na6 {[%clk 0:02:09]} 20. Rb1 {[%clk 0:02:30]}  Nc5 {[%clk 0:02:09]} 21. Rdd1 {[%clk 0:02:26]}  Rad8 {[%clk 0:02:02]} 22. Nd4 {[%clk 0:02:16]}  Bc8 {[%clk 0:02:01]} 23. Nb3 {[%clk 0:02:13]}  Nfd7 {[%clk 0:02:01]} 24. Kf2 {[%clk 0:02:12]}  b6 {[%clk 0:01:56]} 25. Nd4 {[%clk 0:02:10]}  Bb7 {[%clk 0:01:54]} 26. Rd2 {[%clk 0:01:55]}  Kf8 {[%clk 0:01:47]} 27. Rbd1 {[%clk 0:01:54]}  Ke7 {[%clk 0:01:48]} 28. Nb3 {[%clk 0:01:52]}  a5 {[%clk 0:01:36]} 29. a4 {[%clk 0:01:51]}  Nxb3 {[%clk 0:01:35]} 30. Rb2 {[%clk 0:01:48]}  Ndc5 {[%clk 0:01:33]} 31. Rdb1 {[%clk 0:01:45]}  Kd6 {[%clk 0:01:17]} 32. Rxb3 {[%clk 0:01:44]}  Nxb3 {[%clk 0:01:18]} 33. Rxb3 {[%clk 0:01:44]}  Kc5 {[%clk 0:01:19]} 34. Rb1 {[%clk 0:01:43]}  Ba6 {[%clk 0:01:18]} 35. Nd1 {[%clk 0:01:42]}  Rd2 {[%clk 0:01:11]} 36. Ke3 {[%clk 0:01:41]}  Red8 {[%clk 0:01:10]} 37. Nf2 {[%clk 0:01:41]}  Rxe2+ {[%clk 0:01:08]} 38. Kxe2 {[%clk 0:01:41]}  Bxc4+ {[%clk 0:01:08]} 39. Ke3 {[%clk 0:01:42]}  b5 {[%clk 0:01:08]} 40. axb5 {[%clk 0:01:41]}  cxb5 {[%clk 0:01:09]} 41. Ng4 {[%clk 0:01:41]}  a4 {[%clk 0:01:05]} 42. Ne5 {[%clk 0:01:41]}  a3 {[%clk 0:01:03]} 43. Nxf7 {[%clk 0:01:41]}  Bxf7 {[%clk 0:01:03]} 0-1


[Site "https://www.chess.com"]

[Event "Titled Tuesday Blitz January 31 Early 2023"]
[White "Ozates, Tuna"]
[Black "Szente Varga, Fruzsina"]
[WhiteFideId "6354521"]
[BlackFideId "712264"]
[WhiteElo "2251"]
[BlackElo "2075"]
[Result "1-0"]
[Round "02"]
[TimeControl "180+2"]
[Date "2023.01.31"]
[WhiteClock "0:00:10"]
[BlackClock "0:00:06"]

1. d4 {[%clk 0:02:53]}  Nf6 {[%clk 0:02:59]} 2. c4 {[%clk 0:02:46]}  g6 {[%clk 0:03:00]} 3. Nc3 {[%clk 0:02:46]}  Bg7 {[%clk 0:03:00]} 4. e4 {[%clk 0:02:46]}  d6 {[%clk 0:03:01]} 5. f3 {[%clk 0:02:47]}  O-O {[%clk 0:03:00]} 6. Be3 {[%clk 0:02:47]}  c5 {[%clk 0:03:01]} 7. Nge2 {[%clk 0:02:46]}  cxd4 {[%clk 0:02:57]} 8. Nxd4 {[%clk 0:02:45]}  Nc6 {[%clk 0:02:58]} 9. Be2 {[%clk 0:02:44]}  Nxd4 {[%clk 0:02:44]} 10. Bxd4 {[%clk 0:02:43]}  Be6 {[%clk 0:02:45]} 11. O-O {[%clk 0:02:40]}  a6 {[%clk 0:02:45]} 12. Nd5 {[%clk 0:02:35]}  Nxd5 {[%clk 0:02:34]} 13. cxd5 {[%clk 0:02:36]}  Bxd4+ {[%clk 0:02:34]} 14. Qxd4 {[%clk 0:02:37]}  Bd7 {[%clk 0:02:34]} 15. h4 {[%clk 0:02:34]}  h5 {[%clk 0:02:33]} 16. g4 {[%clk 0:02:33]}  Kh7 {[%clk 0:02:02]} 17. Rf2 {[%clk 0:02:20]}  Rc8 {[%clk 0:01:54]} 18. gxh5 {[%clk 0:02:17]}  gxh5 {[%clk 0:01:53]} 19. e5 {[%clk 0:02:18]}  Rg8+ {[%clk 0:01:52]} 20. Kh1 {[%clk 0:02:15]}  Bf5 {[%clk 0:01:32]} 21. Bd3 {[%clk 0:02:10]}  Qd7 {[%clk 0:01:31]} 22. Re1 {[%clk 0:02:06]}  dxe5 {[%clk 0:01:20]} 23. Rxe5 {[%clk 0:02:03]}  e6 {[%clk 0:01:19]} 24. Qf4 {[%clk 0:01:37]}  Rg6 {[%clk 0:00:50]} 25. Bxf5 {[%clk 0:01:06]}  exf5 {[%clk 0:00:51]} 26. Rxf5 {[%clk 0:01:06]}  Rc1+ {[%clk 0:00:46]} 27. Kh2 {[%clk 0:01:05]}  Kg7 {[%clk 0:00:18]} 28. Rxh5 {[%clk 0:00:38]}  Rcg1 {[%clk 0:00:17]} 29. Rg5 {[%clk 0:00:33]}  R1xg5 {[%clk 0:00:16]} 30. hxg5 {[%clk 0:00:30]}  Qxd5 {[%clk 0:00:16]} 31. Rg2 {[%clk 0:00:29]}  Qe6 {[%clk 0:00:13]} 32. Qd4+ {[%clk 0:00:28]}  Kg8 {[%clk 0:00:13]} 33. f4 {[%clk 0:00:20]}  Qd6 {[%clk 0:00:13]} 34. Qxd6 {[%clk 0:00:18]}  Rxd6 {[%clk 0:00:14]} 35. Kg3 {[%clk 0:00:18]}  Kg7 {[%clk 0:00:14]} 36. Kg4 {[%clk 0:00:19]}  Rd4 {[%clk 0:00:14]} 37. Rc2 {[%clk 0:00:16]}  Rb4 {[%clk 0:00:14]} 38. b3 {[%clk 0:00:17]}  a5 {[%clk 0:00:14]} 39. Rc7 {[%clk 0:00:15]}  a4 {[%clk 0:00:14]} 40. bxa4 {[%clk 0:00:15]}  Rxa4 {[%clk 0:00:14]} 41. Rxb7 {[%clk 0:00:14]}  Rxa2 {[%clk 0:00:15]} 42. f5 {[%clk 0:00:14]}  Ra4+ {[%clk 0:00:15]} 43. Kf3 {[%clk 0:00:14]}  Rc4 {[%clk 0:00:15]} 44. g6 {[%clk 0:00:14]}  Kh6 {[%clk 0:00:08]} 45. Rxf7 {[%clk 0:00:09]}  Ra4 {[%clk 0:00:02]} 46. Rh7+ {[%clk 0:00:08]}  Kg5 {[%clk 0:00:02]} 47. g7 {[%clk 0:00:09]}  Ra3+ {[%clk 0:00:02]} 48. Ke4 {[%clk 0:00:09]}  Ra8 {[%clk 0:00:02]} 49. Rh8 {[%clk 0:00:09]}  Ra4+ {[%clk 0:00:03]} 50. Kd3 {[%clk 0:00:09]}  Ra3+ {[%clk 0:00:03]} 51. Kc2 {[%clk 0:00:09]}  Kxf5 {[%clk 0:00:04]} 52. g8=Q {[%clk 0:00:09]}  Ra6 {[%clk 0:00:04]} 53. Rh5+ {[%clk 0:00:09]}  Kf4 {[%clk 0:00:04]} 54. Qg5+ {[%clk 0:00:09]}  Kf3 {[%clk 0:00:05]} 55. Rh3+ {[%clk 0:00:09]}  Ke4 {[%clk 0:00:05]} 56. Re3+ {[%clk 0:00:09]}  Kd4 {[%clk 0:00:05]} 57. Qe5+ {[%clk 0:00:09]}  Kc4 {[%clk 0:00:06]} 58. Re4# {[%clk 0:00:10]} 1-0


[Site "https://www.chess.com"]

[Event "Titled Tuesday Blitz January 31 Early 2023"]
[White "Dylag, Emilia"]
[Black "Tomaszewski, Kacper"]
[WhiteFideId "21805172"]
[BlackFideId "1127373"]
[WhiteElo "2095"]
[BlackElo "2313"]
[Result "1-0"]
[Round "02"]
[TimeControl "180+2"]
[Date "2023.01.31"]
[WhiteClock "0:00:07"]
[BlackClock "0:00:04"]

1. d4 {[%clk 0:02:55]}  d6 {[%clk 0:03:00]} 2. Nf3 {[%clk 0:02:54]}  Nf6 {[%clk 0:02:59]} 3. c4 {[%clk 0:02:54]}  Bf5 {[%clk 0:02:59]} 4. Nc3 {[%clk 0:02:53]}  e6 {[%clk 0:02:59]} 5. g3 {[%clk 0:02:53]}  c6 {[%clk 0:02:58]} 6. Bg2 {[%clk 0:02:53]}  h6 {[%clk 0:02:59]} 7. O-O {[%clk 0:02:53]}  Nbd7 {[%clk 0:02:59]} 8. Re1 {[%clk 0:02:51]}  Ne4 {[%clk 0:02:57]} 9. Nh4 {[%clk 0:02:47]}  Nxc3 {[%clk 0:02:56]} 10. bxc3 {[%clk 0:02:47]}  Bh7 {[%clk 0:02:55]} 11. e4 {[%clk 0:02:39]}  Qa5 {[%clk 0:02:54]} 12. Qb3 {[%clk 0:02:34]}  Nb6 {[%clk 0:02:45]} 13. d5 {[%clk 0:01:56]}  e5 {[%clk 0:02:04]} 14. dxc6 {[%clk 0:01:46]}  bxc6 {[%clk 0:02:04]} 15. Be3 {[%clk 0:01:46]}  c5 {[%clk 0:01:53]} 16. f4 {[%clk 0:01:25]}  Qa4 {[%clk 0:01:38]} 17. fxe5 {[%clk 0:01:20]}  dxe5 {[%clk 0:01:36]} 18. Rad1 {[%clk 0:01:14]}  Qxc4 {[%clk 0:01:30]} 19. Qc2 {[%clk 0:01:01]}  Be7 {[%clk 0:01:28]} 20. Bf1 {[%clk 0:01:01]}  Qe6 {[%clk 0:01:25]} 21. Bb5+ {[%clk 0:01:01]}  Kf8 {[%clk 0:01:24]} 22. Nf5 {[%clk 0:00:58]}  Bxf5 {[%clk 0:01:19]} 23. exf5 {[%clk 0:00:59]}  Qf6 {[%clk 0:01:11]} 24. Qe4 {[%clk 0:00:58]}  Kg8 {[%clk 0:01:08]} 25. a4 {[%clk 0:00:52]}  Rb8 {[%clk 0:01:04]} 26. a5 {[%clk 0:00:46]}  Na8 {[%clk 0:01:03]} 27. c4 {[%clk 0:00:39]}  Kh7 {[%clk 0:01:04]} 28. Rd7 {[%clk 0:00:37]}  a6 {[%clk 0:01:03]} 29. Bc6 {[%clk 0:00:30]}  Rhc8 {[%clk 0:00:59]} 30. Bxa8 {[%clk 0:00:27]}  Rxa8 {[%clk 0:01:00]} 31. Rxe7 {[%clk 0:00:27]}  Rd8 {[%clk 0:00:47]} 32. Rb7 {[%clk 0:00:25]}  Rd6 {[%clk 0:00:42]} 33. Rb5 {[%clk 0:00:24]}  Rad8 {[%clk 0:00:40]} 34. Rb6 {[%clk 0:00:22]}  Rxb6 {[%clk 0:00:39]} 35. axb6 {[%clk 0:00:23]}  Qxb6 {[%clk 0:00:39]} 36. f6+ {[%clk 0:00:23]}  g6 {[%clk 0:00:40]} 37. Qh4 {[%clk 0:00:23]}  h5 {[%clk 0:00:27]} 38. Qg5 {[%clk 0:00:22]}  Kg8 {[%clk 0:00:25]} 39. Rf1 {[%clk 0:00:22]}  Rd6 {[%clk 0:00:20]} 40. Qxe5 {[%clk 0:00:19]}  Re6 {[%clk 0:00:20]} 41. Qxc5 {[%clk 0:00:18]}  Qxc5 {[%clk 0:00:19]} 42. Bxc5 {[%clk 0:00:18]}  Rc6 {[%clk 0:00:20]} 43. Be7 {[%clk 0:00:17]}  Rxc4 {[%clk 0:00:20]} 44. Ra1 {[%clk 0:00:18]}  Rc6 {[%clk 0:00:20]} 45. Ra2 {[%clk 0:00:16]}  Kh7 {[%clk 0:00:20]} 46. Kg2 {[%clk 0:00:17]}  Kh6 {[%clk 0:00:21]} 47. h4 {[%clk 0:00:17]}  g5 {[%clk 0:00:22]} 48. hxg5+ {[%clk 0:00:16]}  Kxg5 {[%clk 0:00:23]} 49. Ra3 {[%clk 0:00:14]}  Kg4 {[%clk 0:00:22]} 50. Ra4+ {[%clk 0:00:14]}  Kg5 {[%clk 0:00:22]} 51. Kf3 {[%clk 0:00:13]}  Rc3+ {[%clk 0:00:21]} 52. Kf2 {[%clk 0:00:14]}  Rc6 {[%clk 0:00:21]} 53. Rd4 {[%clk 0:00:08]}  Rc2+ {[%clk 0:00:20]} 54. Kf3 {[%clk 0:00:08]}  Rc3+ {[%clk 0:00:20]} 55. Kg2 {[%clk 0:00:09]}  Rc2+ {[%clk 0:00:19]} 56. Kh3 {[%clk 0:00:09]}  Rc3 {[%clk 0:00:17]} 57. Bd8 {[%clk 0:00:07]}  Kg6 {[%clk 0:00:16]} 58. Ra4 {[%clk 0:00:06]}  Rc6 {[%clk 0:00:16]} 59. Be7 {[%clk 0:00:07]}  Re6 {[%clk 0:00:16]} 60. Kh4 {[%clk 0:00:07]}  Rc6 {[%clk 0:00:16]} 61. Rd4 {[%clk 0:00:06]}  Re6 {[%clk 0:00:16]} 62. Rd6 {[%clk 0:00:06]}  Re4+ {[%clk 0:00:16]} 63. Kh3 {[%clk 0:00:06]}  a5 {[%clk 0:00:15]} 64. Ra6 {[%clk 0:00:06]}  a4 {[%clk 0:00:15]} 65. Ra8 {[%clk 0:00:06]}  Kf5 {[%clk 0:00:13]} 66. Ra5+ {[%clk 0:00:06]}  Kg6 {[%clk 0:00:13]} 67. Ra8 {[%clk 0:00:06]}  Kf5 {[%clk 0:00:13]} 68. Rh8 {[%clk 0:00:06]}  Kg6 {[%clk 0:00:09]} 69. Rg8+ {[%clk 0:00:05]}  Kf5 {[%clk 0:00:09]} 70. Rg7 {[%clk 0:00:06]}  Ke6 {[%clk 0:00:08]} 71. Rh7 {[%clk 0:00:06]}  Re5 {[%clk 0:00:08]} 72. Kh4 {[%clk 0:00:06]}  a3 {[%clk 0:00:08]} 73. Bxa3 {[%clk 0:00:03]}  Re4+ {[%clk 0:00:08]} 74. Kh3 {[%clk 0:00:03]}  Kxf6 {[%clk 0:00:08]} 75. Rxh5 {[%clk 0:00:03]}  Kg6 {[%clk 0:00:08]} 76. Rh4 {[%clk 0:00:03]}  Re3 {[%clk 0:00:06]} 77. Bc1 {[%clk 0:00:03]}  Rc3 {[%clk 0:00:06]} 78. Bf4 {[%clk 0:00:04]}  Rb3 {[%clk 0:00:06]} 79. Rg4+ {[%clk 0:00:04]}  Kf5 {[%clk 0:00:06]} 80. Rg8 {[%clk 0:00:04]}  Ke4 {[%clk 0:00:06]} 81. Rd8 {[%clk 0:00:05]}  Kf3 {[%clk 0:00:06]} 82. Rf8 {[%clk 0:00:05]}  Rb1 {[%clk 0:00:05]} 83. Kh4 {[%clk 0:00:04]}  Rb7 {[%clk 0:00:04]} 84. Kh5 {[%clk 0:00:03]}  Ke4 {[%clk 0:00:04]} 85. Kh6 {[%clk 0:00:04]}  Kf5 {[%clk 0:00:04]} 86. Kg7 {[%clk 0:00:04]}  Ke6 {[%clk 0:00:04]} 87. Kh6 {[%clk 0:00:04]}  Kf5 {[%clk 0:00:04]} 88. Kh5 {[%clk 0:00:04]}  Kf6 {[%clk 0:00:03]} 89. Bg5+ {[%clk 0:00:04]}  Kg7 {[%clk 0:00:03]} 90. Rc8 {[%clk 0:00:04]}  Rb5 {[%clk 0:00:03]} 91. Kg4 {[%clk 0:00:03]}  Rb4+ {[%clk 0:00:03]} 92. Bf4 {[%clk 0:00:04]}  Rb5 {[%clk 0:00:03]} 93. Rc7 {[%clk 0:00:05]}  Kg6 {[%clk 0:00:04]} 94. Kf3 {[%clk 0:00:05]}  Rb3+ {[%clk 0:00:02]} 95. Kg4 {[%clk 0:00:05]}  Rb5 {[%clk 0:00:03]} 96. Kh3 {[%clk 0:00:06]}  Rb3 {[%clk 0:00:03]} 97. Rc6+ {[%clk 0:00:06]}  Kg7 {[%clk 0:00:03]} 98. Rc5 {[%clk 0:00:07]}  Kg6 {[%clk 0:00:03]} 99. Rc7 {[%clk 0:00:07]}  Kg7 {[%clk 0:00:03]} 100. Rc5 {[%clk 0:00:07]}  Kg6 {[%clk 0:00:04]} 101. Kg4 {[%clk 0:00:08]}  Rb4 {[%clk 0:00:04]} 102. Rc6+ {[%clk 0:00:07]} 1-0


[Site "https://www.chess.com"]

[Event "Titled Tuesday Blitz January 31 Early 2023"]
[White "Lakshmi C"]
[Black "Martic, Ivan"]
[WhiteFideId "25035347"]
[BlackFideId "929301"]
[WhiteElo "1928"]
[BlackElo "2301"]
[Result "0-1"]
[Round "02"]
[TimeControl "180+2"]
[Date "2023.01.31"]
[WhiteClock "0:00:01"]
[BlackClock "0:01:37"]

1. e4 {[%clk 0:02:53]}  d6 {[%clk 0:02:59]} 2. d4 {[%clk 0:02:48]}  Nf6 {[%clk 0:02:59]} 3. Bd3 {[%clk 0:02:47]}  e5 {[%clk 0:02:58]} 4. c3 {[%clk 0:02:46]}  d5 {[%clk 0:02:57]} 5. dxe5 {[%clk 0:02:44]}  Nxe4 {[%clk 0:02:57]} 6. Bxe4 {[%clk 0:02:44]}  dxe4 {[%clk 0:02:58]} 7. Qxd8+ {[%clk 0:02:43]}  Kxd8 {[%clk 0:02:58]} 8. Nd2 {[%clk 0:02:39]}  Bf5 {[%clk 0:02:56]} 9. Ne2 {[%clk 0:02:30]}  e3 {[%clk 0:02:52]} 10. fxe3 {[%clk 0:02:30]}  Nc6 {[%clk 0:02:53]} 11. e4 {[%clk 0:02:13]}  Bg6 {[%clk 0:02:51]} 12. e6 {[%clk 0:02:06]}  fxe6 {[%clk 0:02:50]} 13. Nf4 {[%clk 0:02:05]}  Bf7 {[%clk 0:02:47]} 14. Nf3 {[%clk 0:02:03]}  Be7 {[%clk 0:02:41]} 15. Be3 {[%clk 0:01:57]}  Kc8 {[%clk 0:02:39]} 16. O-O-O {[%clk 0:01:50]}  Rd8 {[%clk 0:02:35]} 17. b4 {[%clk 0:01:38]}  a6 {[%clk 0:02:32]} 18. Rhf1 {[%clk 0:01:28]}  b6 {[%clk 0:02:28]} 19. Nd4 {[%clk 0:01:12]}  Nxd4 {[%clk 0:02:27]} 20. Bxd4 {[%clk 0:01:12]}  Bf8 {[%clk 0:02:13]} 21. Nd3 {[%clk 0:00:46]}  Bg6 {[%clk 0:02:11]} 22. Rde1 {[%clk 0:00:41]}  Kb7 {[%clk 0:02:10]} 23. Ne5 {[%clk 0:00:35]}  Bxb4 {[%clk 0:01:57]} 24. Nxg6 {[%clk 0:00:27]}  Rxd4 {[%clk 0:01:53]} 25. cxd4 {[%clk 0:00:17]}  Bxe1 {[%clk 0:01:54]} 26. Ne7 {[%clk 0:00:07]}  Re8 {[%clk 0:01:47]} 27. Rxe1 {[%clk 0:00:02]}  Rxe7 {[%clk 0:01:46]} 28. Kc2 {[%clk 0:00:03]}  Rf7 {[%clk 0:01:46]} 29. Re2 {[%clk 0:00:03]}  Kc6 {[%clk 0:01:46]} 30. Kd3 {[%clk 0:00:02]}  Kd6 {[%clk 0:01:45]} 31. Kc4 {[%clk 0:00:02]}  c6 {[%clk 0:01:43]} 32. Kd3 {[%clk 0:00:02]}  a5 {[%clk 0:01:44]} 33. Kc4 {[%clk 0:00:02]}  b5+ {[%clk 0:01:43]} 34. Kd3 {[%clk 0:00:02]}  c5 {[%clk 0:01:43]} 35. dxc5+ {[%clk 0:00:02]}  Kxc5 {[%clk 0:01:44]} 36. Rc2+ {[%clk 0:00:02]}  Kd6 {[%clk 0:01:43]} 37. Kd4 {[%clk 0:00:02]}  e5+ {[%clk 0:01:43]} 38. Kd3 {[%clk 0:00:02]}  Rc7 {[%clk 0:01:42]} 39. Rb2 {[%clk 0:00:02]}  b4 {[%clk 0:01:42]} 40. Ke3 {[%clk 0:00:02]}  Rc3+ {[%clk 0:01:41]} 41. Ke2 {[%clk 0:00:02]}  Ra3 {[%clk 0:01:41]} 42. Rd2+ {[%clk 0:00:02]}  Ke6 {[%clk 0:01:41]} 43. Kd1 {[%clk 0:00:01]}  h5 {[%clk 0:01:37]} 0-1


[Site "https://www.chess.com"]